{"text_format":"3","workbook":"xlsx","n_sheets":3,"sheets":["Offer List","Offer List_manual","ComboBoxes"],"not_rendered":{"defined_names":3},"read":"whole","date_system":"1900"}

{"sheet":"Offer List","index":0,"n_rows":296,"n_cols":8,"rows_kept":296}
["Item Name (consumer-facing)","Item Description (consumer-facing)","Gender (use dropdown)","Item Price (use dropdown)","Wholesale Price (automated)","Item Category (use dropdown)","Collection Name","GDNP Naming Convention (automated)"]
["30 character limit including spaces","description/sell-text","unisex, male, or female; male and female versions should be on individual rows","increments of 80 up to 400","=Item Price * 0.7","Top, Bottom, Shoe, Headwear, Accessory, Dressup, Prop, Animation","Name of collection or game title","[Collection Name][Item Name_Gender][Item Category]"]
["Example: Avatar T-Shirt","Download this Avatar item now!","Female",80,{"$f":"IF(D3<>0, D3*0.7, 0)","v":56},"Prop","Avatar Collection Title",{"$f":"\"[\"&G3&\"][\"&A3&\"_\"&C3&\"][\"&F3&\"]\"","v":"[Avatar Collection Title][Example: Avatar T-Shirt_Female][Prop]"}]
["Creeper T-Shirt","Be cool in this Creeper t-shirt","Male",80,{"$f":"IF(D4=\"\",\"\",D4*0.7)","v":56},"Top","Minecraft",{"$f":"IF(A4=\"\",\"\",\"[\"&G4&\"][\"&A4&\"_\"&C4&\"][\"&F4&\"]\")","v":"[Minecraft][Creeper T-Shirt_Male][Top]"}]
["Creeper T-Shirt","Be cool in this Creeper t-shirt","Female",80,56,"Top","Minecraft","[Minecraft][Creeper T-Shirt_Female][Top]"]
["Minecraft T-Shirt","The official Minecraft Logo t-shirt","Male",80,56,"Top","Minecraft","[Minecraft][Minecraft T-Shirt_Male][Top]"]
["Minecraft T-Shirt","The official Minecraft Logo t-shirt","Female",80,56,"Top","Minecraft","[Minecraft][Minecraft T-Shirt_Female][Top]"]
["Minecraft Pickaxe","Yah! The Pickaxe!","Unisex",240,168,"Prop","Minecraft","[Minecraft][Minecraft Pickaxe_Unisex][Prop]"]
["Steve Head","The famous cardboard Steve Head!","Unisex",160,112,"Headwear","Minecraft","[Minecraft][Steve Head_Unisex][Headwear]"]
["Pet Creeper","Play hide and seek with your pet Creeper","Unisex",240,168,"Prop","Minecraft","[Minecraft][Pet Creeper_Unisex][Prop]"]
["Pet Pig","Your own pig to ride!","Unisex",240,168,"Prop","Minecraft","[Minecraft][Pet Pig_Unisex][Prop]"]
["Pet Wolf","Make friends with this wolf","Unisex",240,{"$f":"IF(D12=\"\",\"\",D12*0.7)","v":168},"Prop","Minecraft","[Minecraft][Pet Wolf_Unisex][Prop]"]
["Pet Ghast","A not so friendly pet Ghast","Unisex",240,168,"Prop","Minecraft","[Minecraft][Pet Ghast_Unisex][Prop]"]
["Minecraft Cape","Only for the chosen few…","Unisex",80,56,"Dressup","Minecraft","[Minecraft][Minecraft Cape_Unisex][Dressup]"]
["Sword","The Minecraft Sword!","Unisex",160,112,"Prop","Minecraft","[Minecraft][Sword_Unisex][Prop]"]
["Creeper Head","Stand out from the crowd with your very own cardboard Creeper Head!","Unisex",160,112,"Headwear","Minecraft","[Minecraft][Creeper Head_Unisex][Headwear]"]
["Steve Walk","Walk just like a Minecraft character!","Unisex",160,112,"Prop","Minecraft","[Minecraft][Steve Walk_Unisex][Prop]"]
["Minecart T-Shirt","A pig in a Minecart on a t-shirt!","Male",80,56,"Top","Minecraft","[Minecraft][Minecart T-Shirt_Male][Top]"]
["Minecart T-Shirt","A pig in a Minecart on a t-shirt!","Female",80,56,"Top","Minecraft","[Minecraft][Minecart T-Shirt_Female][Top]"]
["\"Creeper Inside\" T-Shirt","The Creeper Inside t-shirt as worn by Notch","Male",80,56,"Top","Minecraft","[Minecraft][\"Creeper Inside\" T-Shirt_Male][Top]"]
["\"Creeper Inside\" T-Shirt","The Creeper Inside t-shirt as worn by Notch","Female",80,56,"Top","Minecraft","[Minecraft][\"Creeper Inside\" T-Shirt_Female][Top]"]
["Exploding Creeper","A Creeper doing what Creepers do.","Unisex",240,168,"Prop","Minecraft","[Minecraft][Exploding Creeper_Unisex][Prop]"]
["Pet Chicken","Is it a chicken, or is it a duck? You decide!","Unisex",240,168,"Prop","Minecraft","[Minecraft][Pet Chicken_Unisex][Prop]"]
["Notch Hat","Give your avatar the Notch look with this cool hat.","Unisex",80,56,"Prop","Minecraft","[Minecraft][Notch Hat_Unisex][Prop]"]
["Minecon Cape","If you didn't make it to Minecon 2011, now you can now pretend you did!","Unisex",80,56,"Prop","Minecraft","[Minecraft][Minecon Cape_Unisex][Prop]"]
[{"$nulls":4},"",null,null,""]
[{"$nulls":4},"",null,null,""]
[{"$nulls":4},"",null,null,""]
[{"$nulls":4},"",null,null,""]
[{"$nulls":4},"",null,null,{"$f":"IF(A30=\"\",\"\",\"[\"&G30&\"][\"&A30&\"_\"&C30&\"][\"&F30&\"]\")","v":""}]
[{"$nulls":4},"",null,null,""]
[{"$nulls":4},"",null,null,""]
[{"$nulls":4},"",null,null,""]
[{"$nulls":4},"",null,null,""]
[{"$nulls":4},"",null,null,""]
[{"$nulls":4},"",null,null,""]
[{"$nulls":4},"",null,null,""]
[{"$nulls":4},"",null,null,""]
[{"$nulls":4},"",null,null,""]
[{"$nulls":4},"",null,null,""]
[{"$nulls":4},"",null,null,""]
[{"$nulls":4},"",null,null,""]
[{"$nulls":4},"",null,null,""]
[{"$nulls":4},"",null,null,""]
[{"$nulls":4},"",null,null,""]
[{"$nulls":4},"",null,null,""]
[{"$nulls":4},"",null,null,""]
[{"$nulls":4},"",null,null,""]
[{"$nulls":4},"",null,null,""]
[{"$nulls":4},"",null,null,""]
[{"$nulls":4},"",null,null,""]
[{"$nulls":4},"",null,null,""]
[{"$nulls":4},"",null,null,""]
[{"$nulls":4},"",null,null,""]
[{"$nulls":4},"",null,null,""]
[{"$nulls":4},"",null,null,""]
[{"$nulls":4},"",null,null,""]
[{"$nulls":4},"",null,null,""]
[{"$nulls":4},"",null,null,""]
[{"$nulls":4},"",null,null,""]
[{"$nulls":4},"",null,null,""]
[{"$nulls":4},"",null,null,""]
[{"$nulls":4},"",null,null,""]
[{"$nulls":4},"",null,null,""]
[{"$nulls":4},"",null,null,""]
[{"$nulls":4},"",null,null,""]
[{"$nulls":4},"",null,null,""]
[{"$nulls":4},"",null,null,""]
[{"$nulls":4},{"$f":"IF(D69=\"\",\"\",D69*0.7)","v":""},null,null,{"$f":"IF(A69=\"\",\"\",\"[\"&G69&\"][\"&A69&\"_\"&C69&\"][\"&F69&\"]\")","v":""}]
[{"$nulls":4},"",null,null,""]
[{"$nulls":4},"",null,null,""]
[{"$nulls":4},"",null,null,""]
[{"$nulls":4},"",null,null,""]
[{"$nulls":4},"",null,null,""]
[{"$nulls":4},"",null,null,""]
[{"$nulls":4},"",null,null,""]
[{"$nulls":4},"",null,null,""]
[{"$nulls":4},"",null,null,""]
[{"$nulls":4},"",null,null,""]
[{"$nulls":4},"",null,null,""]
[{"$nulls":4},"",null,null,""]
[{"$nulls":4},"",null,null,""]
[{"$nulls":4},"",null,null,""]
[{"$nulls":4},"",null,null,""]
[{"$nulls":4},"",null,null,""]
[{"$nulls":4},"",null,null,""]
[{"$nulls":4},"",null,null,""]
[{"$nulls":4},"",null,null,""]
[{"$nulls":4},"",null,null,""]
[{"$nulls":4},"",null,null,""]
[{"$nulls":4},"",null,null,""]
[{"$nulls":4},"",null,null,""]
[{"$nulls":4},"",null,null,""]
[{"$nulls":4},"",null,null,""]
[{"$nulls":4},"",null,null,""]
[{"$nulls":4},"",null,null,""]
[{"$nulls":4},"",null,null,""]
[{"$nulls":4},"",null,null,""]
[{"$nulls":4},"",null,null,""]
[{"$nulls":4},"",null,null,""]
[{"$nulls":4},"",null,null,""]
[{"$nulls":4},"",null,null,""]
[{"$nulls":4},"",null,null,""]
[{"$nulls":4},"",null,null,""]
[{"$nulls":4},"",null,null,""]
[{"$nulls":4},"",null,null,""]
[{"$nulls":4},"",null,null,""]
[{"$nulls":4},"",null,null,""]
[{"$nulls":4},"",null,null,""]
[{"$nulls":4},"",null,null,""]
[{"$nulls":4},"",null,null,""]
[{"$nulls":4},"",null,null,""]
[{"$nulls":4},"",null,null,""]
[{"$nulls":4},"",null,null,""]
[{"$nulls":4},"",null,null,""]
[{"$nulls":4},"",null,null,""]
[{"$nulls":4},"",null,null,""]
[{"$nulls":4},"",null,null,""]
[{"$nulls":4},"",null,null,""]
[{"$nulls":4},"",null,null,""]
[{"$nulls":4},"",null,null,""]
[{"$nulls":4},"",null,null,""]
[{"$nulls":4},"",null,null,""]
[{"$nulls":4},"",null,null,""]
[{"$nulls":4},"",null,null,""]
[{"$nulls":4},"",null,null,""]
[{"$nulls":4},"",null,null,""]
[{"$nulls":4},"",null,null,""]
[{"$nulls":4},"",null,null,""]
[{"$nulls":4},"",null,null,""]
[{"$nulls":4},"",null,null,""]
[{"$nulls":4},"",null,null,""]
[{"$nulls":4},{"$f":"IF(D133=\"\",\"\",D133*0.7)","v":""},null,null,{"$f":"IF(A133=\"\",\"\",\"[\"&G133&\"][\"&A133&\"_\"&C133&\"][\"&F133&\"]\")","v":""}]
[{"$nulls":4},"",null,null,""]
[{"$nulls":4},"",null,null,""]
[{"$nulls":4},"",null,null,""]
[{"$nulls":4},"",null,null,""]
[{"$nulls":4},"",null,null,""]
[{"$nulls":4},"",null,null,""]
[{"$nulls":4},"",null,null,""]
[{"$nulls":4},"",null,null,""]
[{"$nulls":4},"",null,null,""]
[{"$nulls":4},"",null,null,""]
[{"$nulls":4},"",null,null,""]
[{"$nulls":4},"",null,null,""]
[{"$nulls":4},"",null,null,""]
[{"$nulls":4},"",null,null,""]
[{"$nulls":4},"",null,null,""]
[{"$nulls":4},"",null,null,""]
[{"$nulls":4},"",null,null,""]
[{"$nulls":4},"",null,null,""]
[{"$nulls":4},"",null,null,""]
[{"$nulls":4},"",null,null,""]
[{"$nulls":4},"",null,null,""]
[{"$nulls":4},"",null,null,""]
[{"$nulls":4},"",null,null,""]
[{"$nulls":4},"",null,null,""]
[{"$nulls":4},"",null,null,""]
[{"$nulls":4},"",null,null,""]
[{"$nulls":4},"",null,null,""]
[{"$nulls":4},"",null,null,""]
[{"$nulls":4},"",null,null,""]
[{"$nulls":4},"",null,null,""]
[{"$nulls":4},"",null,null,""]
[{"$nulls":4},"",null,null,""]
[{"$nulls":4},"",null,null,""]
[{"$nulls":4},"",null,null,""]
[{"$nulls":4},"",null,null,""]
[{"$nulls":4},"",null,null,""]
[{"$nulls":4},"",null,null,""]
[{"$nulls":4},"",null,null,""]
[{"$nulls":4},"",null,null,""]
[{"$nulls":4},"",null,null,""]
[{"$nulls":4},"",null,null,""]
[{"$nulls":4},"",null,null,""]
[{"$nulls":4},"",null,null,""]
[{"$nulls":4},"",null,null,""]
[{"$nulls":4},"",null,null,""]
[{"$nulls":4},"",null,null,""]
[{"$nulls":4},"",null,null,""]
[{"$nulls":4},"",null,null,""]
[{"$nulls":4},"",null,null,""]
[{"$nulls":4},"",null,null,""]
[{"$nulls":4},"",null,null,""]
[{"$nulls":4},"",null,null,""]
[{"$nulls":4},"",null,null,""]
[{"$nulls":4},"",null,null,""]
[{"$nulls":4},"",null,null,""]
[{"$nulls":4},"",null,null,""]
[{"$nulls":4},"",null,null,""]
[{"$nulls":4},"",null,null,""]
[{"$nulls":4},"",null,null,""]
[{"$nulls":4},"",null,null,""]
[{"$nulls":4},"",null,null,""]
[{"$nulls":4},"",null,null,""]
[{"$nulls":4},"",null,null,""]
[{"$nulls":4},{"$f":"IF(D197=\"\",\"\",D197*0.7)","v":""},null,null,{"$f":"IF(A197=\"\",\"\",\"[\"&G197&\"][\"&A197&\"_\"&C197&\"][\"&F197&\"]\")","v":""}]
[{"$nulls":4},"",null,null,""]
[{"$nulls":4},"",null,null,""]
[{"$nulls":4},"",null,null,""]
[{"$nulls":4},"",null,null,""]
[{"$nulls":4},"",null,null,""]
[{"$nulls":4},"",null,null,""]
[{"$nulls":4},"",null,null,""]
[{"$nulls":4},"",null,null,""]
[{"$nulls":4},"",null,null,""]
[{"$nulls":4},"",null,null,""]
[{"$nulls":4},"",null,null,""]
[{"$nulls":4},"",null,null,""]
[{"$nulls":4},"",null,null,""]
[{"$nulls":4},"",null,null,""]
[{"$nulls":4},"",null,null,""]
[{"$nulls":4},"",null,null,""]
[{"$nulls":4},"",null,null,""]
[{"$nulls":4},"",null,null,""]
[{"$nulls":4},"",null,null,""]
[{"$nulls":4},"",null,null,""]
[{"$nulls":4},"",null,null,""]
[{"$nulls":4},"",null,null,""]
[{"$nulls":4},"",null,null,""]
[{"$nulls":4},"",null,null,""]
[{"$nulls":4},"",null,null,""]
[{"$nulls":4},"",null,null,""]
[{"$nulls":4},"",null,null,""]
[{"$nulls":4},"",null,null,""]
[{"$nulls":4},"",null,null,""]
[{"$nulls":4},"",null,null,""]
[{"$nulls":4},"",null,null,""]
[{"$nulls":4},"",null,null,""]
[{"$nulls":4},"",null,null,""]
[{"$nulls":4},"",null,null,""]
[{"$nulls":4},"",null,null,""]
[{"$nulls":4},"",null,null,""]
[{"$nulls":4},"",null,null,""]
[{"$nulls":4},"",null,null,""]
[{"$nulls":4},"",null,null,""]
[{"$nulls":4},"",null,null,""]
[{"$nulls":4},"",null,null,""]
[{"$nulls":4},"",null,null,""]
[{"$nulls":4},"",null,null,""]
[{"$nulls":4},"",null,null,""]
[{"$nulls":4},"",null,null,""]
[{"$nulls":4},"",null,null,""]
[{"$nulls":4},"",null,null,""]
[{"$nulls":4},"",null,null,""]
[{"$nulls":4},"",null,null,""]
[{"$nulls":4},"",null,null,""]
[{"$nulls":4},"",null,null,""]
[{"$nulls":4},"",null,null,""]
[{"$nulls":4},"",null,null,""]
[{"$nulls":4},"",null,null,""]
[{"$nulls":4},"",null,null,""]
[{"$nulls":4},"",null,null,""]
[{"$nulls":4},"",null,null,""]
[{"$nulls":4},"",null,null,""]
[{"$nulls":4},"",null,null,""]
[{"$nulls":4},"",null,null,""]
[{"$nulls":4},"",null,null,""]
[{"$nulls":4},"",null,null,""]
[{"$nulls":4},"",null,null,""]
[{"$nulls":4},{"$f":"IF(D261=\"\",\"\",D261*0.7)","v":""},null,null,{"$f":"IF(A261=\"\",\"\",\"[\"&G261&\"][\"&A261&\"_\"&C261&\"][\"&F261&\"]\")","v":""}]
[{"$nulls":4},"",null,null,""]
[{"$nulls":4},"",null,null,""]
[{"$nulls":4},"",null,null,""]
[{"$nulls":4},"",null,null,""]
[{"$nulls":4},"",null,null,""]
[{"$nulls":4},"",null,null,""]
[{"$nulls":4},"",null,null,""]
[{"$nulls":4},"",null,null,""]
[{"$nulls":4},"",null,null,""]
[{"$nulls":4},"",null,null,""]
[{"$nulls":4},"",null,null,""]
[{"$nulls":4},"",null,null,""]
[{"$nulls":4},"",null,null,""]
[{"$nulls":4},"",null,null,""]
[{"$nulls":4},"",null,null,""]
[{"$nulls":4},"",null,null,""]
[{"$nulls":4},"",null,null,""]
[{"$nulls":4},"",null,null,""]
[{"$nulls":4},"",null,null,""]
[{"$nulls":4},"",null,null,""]
[{"$nulls":4},"",null,null,""]
[{"$nulls":4},"",null,null,""]
[{"$nulls":4},"",null,null,""]
[{"$nulls":4},"",null,null,""]
[{"$nulls":4},"",null,null,""]
[{"$nulls":4},"",null,null,""]
[{"$nulls":4},"",null,null,""]
[{"$nulls":4},"",null,null,""]
[{"$nulls":4},"",null,null,""]
[{"$nulls":4},"",null,null,""]
[{"$nulls":4},"",null,null,""]
[{"$nulls":4},"",null,null,""]
[{"$nulls":4},"",null,null,""]
[{"$nulls":4},"",null,null,""]
[{"$nulls":4},"",null,null,""]

{"sheet":"Offer List_manual","index":1,"n_rows":5,"n_cols":5,"rows_kept":5,"hidden":true}
["Item Name (consumer-facing)","Item Description (consumer-facing)","Gender ","Item Price","Wholesale Price"]
["30 character limit including spaces","description/sell-text","male and female versions should be on individual line items",null,"=Item Price * 0.7"]
["Example 1: Avatar Prop","Download this Avatar item now!","Unisex",240,{"$f":"D3*0.7","v":168}]
["Example 2: Avatar T-Shirt","Download this Avatar item now!","Male",80,{"$f":"D4*0.7","v":56}]
["Example 3: Avatar T-Shirt","Download this Avatar item now!","Female",80,{"$f":"D5*0.7","v":56}]

{"sheet":"ComboBoxes","index":2,"n_rows":9,"n_cols":3,"rows_kept":9,"hidden":true}
["Gender","ItemPrice","Item Category"]
["Male",80,"Top"]
["Female",160,"Bottom"]
["Unisex",240,"Shoe"]
[null,320,"Headwear"]
[null,400,"Accessory"]
[null,null,"Dressup"]
[null,null,"Prop"]
[null,null,"Animation"]